Workbook

Sheet Excel Salary dashboard

Sheet Data
B1: Unique ID | C1: Salary in USD | D1: Job Type | E1: clean Country | F1: How many hours of a day you work on Excel | G1: Years of Experience | H1: Clean Years of experience | T1: Countries with sample big enough | W1: Job Type
B2: ID0001 | C2: 5846 | D2: Analyst | E2: India | F2: 4 to 6 hours a day | H2: =IF(ISBLANK(G2),NA(),VLOOKUP(G2,experienceCode,2,1)) ->  | T2: USA | U2: =COUNTIF($E$2:$E$1884,T2) -> 617 | W2: Analyst | X2: =COUNTIF($D$2:$D$1884,W2) -> 743
B3: ID0002 | C3: 15000 | D3: Controller | E3: Croatia | F3: All the 8 hours baby, all the 8! | T3: India | U3: 565 | W3: Manager | X3: 558
B4: ID0003 | C4: 58000 | D4: Analyst | E4: USA | F4: All the 8 hours baby, all the 8! | T4: UK | U4: 154 | W4: Accountant | X4: 135
B5: ID0004 | C5: 48000 | D5: Controller | E5: Pakistan | F5: 2 to 3 hours per day | T5: Australia | U5: 81 | W5: Consultant | X5: 90
B6: ID0005 | C6: 54000 | D6: Engineer | E6: USA | F6: All the 8 hours baby, all the 8! | M6: Excel ?!? What Excel? | N6: 1 | O6: I don't work with excel | T6: Canada | U6: 58 | W6: Reporting | X6: 83
B7: ID0006 | C7: 41731 | D7: Analyst | E7: Iceland | F7: All the 8 hours baby, all the 8! | M7: 1 or 2 hours a day | N7: 2 | O7: 1 - 2 hours a day | T7: Pakistan | U7: 29 | W7: CXO or Top Mgmt. | X7: 75
B8: ID0007 | C8: 184207.9187 | D8: Manager | E8: Germany | F8: 1 or 2 hours a day | M8: 2 to 3 hours per day | N8: 3 | O8: 2 - 3 hours a day | T8: Netherlands | U8: 23 | W8: Engineer | X8: 74
B9: ID0008 | C9: 12000 | D9: Analyst | E9: Ukraine | F9: All the 8 hours baby, all the 8! | M9: 4 to 6 hours a day | N9: 4 | O9: 4 - 6 hours a day | T9: South Africa | U9: 19 | W9: Controller | X9: 67
B10: ID0009 | C10: 44000 | D10: CXO or Top Mgmt. | E10: Portugal | F10: 1 or 2 hours a day | M10: All the 8 hours baby, all the 8! | N10: 5 | O10: 8 hours a day | T10: UAE | U10: 19 | W10: Specialist | X10: 51
B11: ID0010 | C11: 12227.4302 | D11: Accountant | E11: Pakistan | F11: All the 8 hours baby, all the 8! | T11: Brazil | U11: =COUNTIF($E$2:$E$1884,T11) -> 17 | W11: Misc. | X11: 7
B12: ID0011 | C12: 65616.13102 | D12: Specialist | E12: Ireland | F12: 2 to 3 hours per day | M12: Experience | N12: lower | O12: code | T12: Germany | U12: 17
B13: ID0012 | C13: 14000 | D13: Engineer | E13: Hungary | F13: 4 to 6 hours a day | M13: 0-2 years | N13: 0 | O13: less than 2 years | T13: New Zealand | U13: 15
B14: ID0013 | C14: 13338.1296 | D14: Analyst | E14: India | F14: All the 8 hours baby, all the 8! | M14: 2-5 | N14: 2 | O14: 2 - 5 years | T14: Singapore | U14: 13
B15: ID0014 | C15: 49000 | D15: Analyst | E15: USA | F15: All the 8 hours baby, all the 8! | M15: 5-10 | N15: 5 | O15: 5 - 10 years | T15: Philippines | U15: 11
B16: ID0015 | C16: 85000 | D16: Engineer | E16: USA | F16: 1 or 2 hours a day | M16: 10+ | N16: 10 | O16: more than 10 years | T16: Saudi Arabia | U16: 11
B17: ID0016 | C17: 75000 | D17: Engineer | E17: USA | F17: All the 8 hours baby, all the 8! | T17: Mexico | U17: 10
B18: ID0017 | C18: 107000 | D18: Manager | E18: Switzerland | F18: 4 to 6 hours a day | T18: Portugal | U18: 10
B19: ID0018 | C19: 45000 | D19: Reporting | E19: South Africa | F19: All the 8 hours baby, all the 8! | T19: Spain | U19: 10
B20: ID0019 | C20: 9794.354178 | D20: Manager | E20: India | F20: 2 to 3 hours per day | T20: Russia | U20: 9
B21: ID0020 | C21: 50000 | D21: Manager | E21: India | F21: 1 or 2 hours a day | T21: Indonesia | U21: 8
B22: ID0021 | C22: 13500 | D22: Manager | E22: India | F22: 4 to 6 hours a day | T22: malaysia | U22: 7
B23: ID0022 | C23: 96000 | D23: Analyst | E23: USA | F23: 2 to 3 hours per day | H23: =IF(ISBLANK(G23),NA(),VLOOKUP(G23,experienceCode,2,1)) ->  | T23: Norway | U23: 7
B24: ID0023 | C24: 17807.91669 | D24: Manager | E24: India | F24: 4 to 6 hours a day | T24: Denmark | U24: 6
B25: ID0024 | C25: 75000 | D25: CXO or Top Mgmt. | E25: USA | F25: 4 to 6 hours a day | T25: France | U25: 6
B26: ID0025 | C26: 40000 | D26: Manager | E26: USA | F26: 2 to 3 hours per day | T26: italy | U26: 6
B27: ID0026 | C27: 60000 | D27: Analyst | E27: USA | F27: All the 8 hours baby, all the 8! | T27: Poland | U27: 6
B28: ID0028 | C28: 41160.94182 | D28: Manager | E28: Belgium | F28: 4 to 6 hours a day | T28: Romania | U28: 6
B29: ID0029 | C29: 16027.12502 | D29: Engineer | E29: India | F29: 1 or 2 hours a day | T29: Colombia | U29: 5
B30: ID0030 | C30: 10684.75001 | D30: Manager | E30: India | F30: 4 to 6 hours a day | T30: Europe | U30: 5
B31: ID0031 | C31: 41000 | D31: Manager | E31: Russia | F31: All the 8 hours baby, all the 8! | T31: Hungary | U31: 5
B32: ID0032 | C32: 6410.850007 | D32: Specialist | E32: India | F32: 4 to 6 hours a day | T32: Ireland | U32: 5
B33: ID0033 | C33: 55166.23952 | D33: Analyst | E33: UK | F33: All the 8 hours baby, all the 8! | T33: Israel | U33: 5
B34: ID0035 | C34: 19200 | D34: Analyst | E34: Poland | F34: 2 to 3 hours per day | T34: Sri Lanka | U34: =COUNTIF($E$2:$E$1884,T34) -> 5
B35: ID0036 | C35: 8903.958344 | D35: Consultant | E35: India | F35: All the 8 hours baby, all the 8! | T35: Belgium | U35: 4
B36: ID0037 | C36: 150000 | D36: Manager | E36: USA | F36: 2 to 3 hours per day | T36: Dubai | U36: 4
B37: ID0038 | C37: 69000 | D37: Engineer | E37: USA | F37: 4 to 6 hours a day | T37: Switzerland | U37: 4
B38: ID0039 | C38: 30000 | D38: Consultant | E38: USA | F38: 2 to 3 hours per day | T38: Ukraine | U38: 4
B39: ID0040 | C39: 7123.166675 | D39: Manager | E39: India | F39: 4 to 6 hours a day | T39: Brasil | U39: 3
B40: ID0041 | C40: 71393.67595 | D40: Consultant | E40: Australia | F40: 2 to 3 hours per day | T40: Croatia | U40: 3
B41: ID0042 | C41: 14500 | D41: Analyst | E41: India | F41: 4 to 6 hours a day | T41: Finland | U41: 3
B42: ID0043 | C42: 68835.30661 | D42: Engineer | E42: Canada | F42: 2 to 3 hours per day | T42: Greece | U42: 3
B43: ID0044 | C43: 58000 | D43: Accountant | E43: USA | F43: 4 to 6 hours a day | T43: iran | U43: 3
B44: ID0045 | C44: 90000 | D44: Misc. | E44: USA | F44: 1 or 2 hours a day | T44: Japan | U44: 3
B45: ID0046 | C45: 14246.33335 | D45: Manager | E45: India | F45: 2 to 3 hours per day | T45: Kuwait | U45: 3
B46: ID0047 | C46: 50437.70471 | D46: Analyst | E46: UK | F46: 4 to 6 hours a day | T46: Nigeria | U46: 3
B47: ID0048 | C47: 12000 | D47: Consultant | E47: USA | F47: 1 or 2 hours a day | T47: Qatar | U47: 3
B48: ID0049 | C48: 57167.97475 | D48: Manager | E48: Netherlands | F48: 4 to 6 hours a day | T48: Bangladesh | U48: 2
B49: ID0050 | C49: 100000 | D49: Analyst | E49: Germany | F49: All the 8 hours baby, all the 8! | T49: CEE | U49: 2
B50: ID0051 | C50: 57000 | D50: Accountant | E50: USA | F50: 2 to 3 hours per day | T50: china | U50: 2
B51: ID0052 | C51: 63047.13088 | D51: Accountant | E51: UK | F51: 4 to 6 hours a day | T51: Myanmar | U51: 2
B52: ID0053 | C52: 30489.58654 | D52: Manager | E52: Germany | F52: All the 8 hours baby, all the 8! | T52: Panama | U52: 2
B53: ID0054 | C53: 4320 | D53: Accountant | E53: India | F53: 2 to 3 hours per day | T53: Sweden | U53: 2
B54: ID0055 | C54: 62000 | D54: Analyst | E54: USA | F54: 4 to 6 hours a day | T54: Thailand | U54: 2
B55: ID0056 | C55: 7500 | D55: Analyst | E55: India | F55: 4 to 6 hours a day | T55: Turkey | U55: 2
B56: ID0057 | C56: 28371.2089 | D56: Manager | E56: UK | F56: 1 or 2 hours a day | T56: Zambia | U56: 2
B57: ID0058 | C57: 62249.57251 | D57: Manager | E57: France | F57: 2 to 3 hours per day | T57: Albania | U57: 1
B58: ID0059 | C58: 38000 | D58: Analyst | E58: USA | F58: 4 to 6 hours a day | T58: arabian Gulf | U58: 1
B59: ID0060 | C59: 41000 | D59: Specialist | E59: USA | F59: 4 to 6 hours a day | T59: Argentina | U59: 1
B60: ID0061 | C60: 68000 | D60: Analyst | E60: USA | F60: All the 8 hours baby, all the 8! | T60: Armenia | U60: 1
B61: ID0062 | C61: 55068.24529 | D61: Analyst | E61: Canada | F61: All the 8 hours baby, all the 8! | T61: Aruba | U61: 1
B62: ID0063 | C62: 61000 | D62: Manager | E62: Brasil | F62: All the 8 hours baby, all the 8! | T62: Asia | U62: 1
B63: ID0064 | C63: 54627.17588 | D63: Consultant | E63: France | F63: 4 to 6 hours a day | T63: Austria | U63: 1
B64: ID0065 | C64: 85000 | D64: Manager | E64: USA | F64: 4 to 6 hours a day | T64: Azerbaijan | U64: 1
B65: ID0066 | C65: 48275.17868 | D65: Analyst | E65: Netherlands | F65: 1 or 2 hours a day | T65: Baltic | U65: 1
B66: ID0067 | C66: 86692.32079 | D66: CXO or Top Mgmt. | E66: Australia | F66: 4 to 6 hours a day | H66: =IF(ISBLANK(G66),NA(),VLOOKUP(G66,experienceCode,2,1)) ->  | T66: Bermuda | U66: =COUNTIF($E$2:$E$1884,T66) -> 1
B67: ID0068 | C67: 85087 | D67: Analyst | E67: USA | F67: 2 to 3 hours per day | T67: Bhutan | U67: 1
B68: ID0069 | C68: 50000 | D68: Analyst | E68: USA | F68: All the 8 hours baby, all the 8! | T68: Bolivia | U68: 1
B69: ID0070 | C69: 100000 | D69: Manager | E69: South Africa | F69: 4 to 6 hours a day | T69: Bulgaria | U69: 1
B70: ID0071 | C70: 57000 | D70: Analyst | E70: USA | F70: 4 to 6 hours a day | T70: Cambodia | U70: 1
B71: ID0072 | C71: 75000 | D71: Manager | E71: USA | F71: All the 8 hours baby, all the 8! | T71: Central America | U71: 1
B72: ID0073 | C72: 101990.9656 | D72: Manager | E72: Australia | F72: 4 to 6 hours a day | T72: Costa Rica | U72: 1
B73: ID0074 | C73: 33420 | D73: Manager | E73: UAE | F73: All the 8 hours baby, all the 8! | T73: Czech Republic | U73: 1
B74: ID0075 | C74: 58460.84254 | D74: Specialist | E74: Canada | F74: All the 8 hours baby, all the 8! | T74: Dominican Republic | U74: 1
B75: ID0076 | C75: 15000 | D75: Consultant | E75: USA | F75: All the 8 hours baby, all the 8! | T75: Egypt | U75: 1
B76: ID0077 | C76: 60000 | D76: Analyst | E76: Canada | F76: 1 or 2 hours a day | T76: Estonia | U76: 1
B77: ID0078 | C77: 157617.8272 | D77: Analyst | E77: UK | F77: 2 to 3 hours per day | T77: Ethiopia | U77: 1
B78: ID0079 | C78: 18000 | D78: Analyst | E78: Saudi Arabia | F78: All the 8 hours baby, all the 8! | T78: Ghana | U78: 1
B79: ID0080 | C79: 50000 | D79: Manager | E79: USA | F79: 2 to 3 hours per day | T79: Guyana | U79: 1
B80: ID0081 | C80: 26000 | D80: Analyst | E80: Panama | F80: All the 8 hours baby, all the 8! | T80: Hong Kong | U80: 1
B81: ID0082 | C81: 47285.34816 | D81: Manager | E81: UK | F81: 4 to 6 hours a day | T81: Iceland | U81: 1
B82: ID0083 | C82: 150000 | D82: CXO or Top Mgmt. | E82: USA | F82: All the 8 hours baby, all the 8! | T82: Kenya | U82: 1
B83: ID0084 | C83: 120000 | D83: Manager | E83: USA | F83: 4 to 6 hours a day | T83: Kuwait | U83: 1
B84: ID0085 | C84: 8903.958344 | D84: Consultant | E84: India | F84: All the 8 hours baby, all the 8! | T84: Latin America | U84: 1
B85: ID0086 | C85: 31330 | D85: Analyst | E85: Brazil | F85: All the 8 hours baby, all the 8! | T85: Lesotho | U85: 1
B86: ID0087 | C86: 110000 | D86: Engineer | E86: USA | F86: 2 to 3 hours per day | T86: Libya | U86: 1
B87: ID0088 | C87: 81000 | D87: Consultant | E87: UK | F87: 4 to 6 hours a day | T87: Lithuania | U87: 1
B88: ID0089 | C88: 40000 | D88: Analyst | E88: USA | F88: 4 to 6 hours a day | T88: Mauritius | U88: 1
B89: ID0090 | C89: 41301.18397 | D89: Analyst | E89: Canada | F89: 4 to 6 hours a day | T89: Mongolia | U89: 1
B90: ID0091 | C90: 125000 | D90: CXO or Top Mgmt. | E90: USA | F90: 4 to 6 hours a day | T90: Montenegro | U90: 1
B91: ID0092 | C91: 36000 | D91: Manager | E91: USA | F91: 2 to 3 hours per day | T91: Morocco | U91: 1
B92: ID0093 | C92: 2564.340003 | D92: Consultant | E92: India | F92: 1 or 2 hours a day | T92: mozambique | U92: 1
B93: ID0094 | C93: 75000 | D93: Analyst | E93: USA | F93: 1 or 2 hours a day | T93: MYS | U93: 1
B94: ID0095 | C94: 95000 | D94: CXO or Top Mgmt. | E94: USA | F94: 4 to 6 hours a day | T94: Oman | U94: 1
B95: ID0096 | C95: 24000 | D95: Manager | E95: USA | F95: 2 to 3 hours per day | T95: Paraguay | U95: 1
B96: ID0097 | C96: 91000 | D96: Manager | E96: USA | F96: 1 or 2 hours a day | T96: Peru | U96: 1
B97: ID0098 | C97: 40000 | D97: Analyst | E97: USA | F97: 4 to 6 hours a day | T97: Republic of Georgia | U97: 1
B98: ID0099 | C98: 57000 | D98: Manager | E98: USA | F98: 4 to 6 hours a day | T98: Republica Dominicana | U98: =COUNTIF($E$2:$E$1884,T98) -> 1
B99: ID0100 | C99: 74000 | D99: Consultant | E99: USA | F99: 4 to 6 hours a day | T99: self-employed | U99: 1
B100: ID0101 | C100: 80000 | D100: Analyst | E100: USA | F100: 4 to 6 hours a day | T100: Slovakia | U100: 1
B101: ID0102 | C101: 90000 | D101: Specialist | E101: USA | F101: 4 to 6 hours a day | T101: Slovenia | U101: 1
B102: ID0103 | C102: 21000 | D102: Analyst | E102: arabian Gulf | F102: 1 or 2 hours a day | T102: Somalia | U102: 1
B103: ID0104 | C103: 52000 | D103: Manager | E103: USA | F103: 4 to 6 hours a day | T103: Tunisia | U103: 1
B104: ID0105 | C104: 19200 | D104: Analyst | E104: Mexico | F104: 4 to 6 hours a day | T104: Uganda | U104: 1
B105: ID0106 | C105: 36000 | D105: Analyst | E105: USA | F105: 4 to 6 hours a day | T105: Uruguay | U105: 1
B106: ID0107 | C106: 57400 | D106: Analyst | E106: USA | F106: 4 to 6 hours a day | T106: Viet Nam | U106: 1
B107: ID0108 | C107: 66000 | D107: Analyst | E107: USA | F107: 2 to 3 hours per day | T107: Vietnam | U107: 1
B108: ID0109 | C108: 44463.98036 | D108: Manager | E108: Greece | F108: 4 to 6 hours a day | T108: Zimbabwe | U108: 1
B109: ID0111 | C109: 85000 | D109: Analyst | E109: USA | F109: 4 to 6 hours a day
B110: ID0112 | C110: 50000 | D110: Specialist | E110: USA | F110: 4 to 6 hours a day
B111: ID0113 | C111: 58000 | D111: Manager | E111: USA | F111: 4 to 6 hours a day
B112: ID0114 | C112: 37900 | D112: Accountant | E112: USA | F112: All the 8 hours baby, all the 8!
B113: ID0115 | C113: 48000 | D113: Manager | E113: UAE | F113: 2 to 3 hours per day
B114: ID0116 | C114: 67000 | D114: Analyst | E114: USA | F114: 4 to 6 hours a day
B115: ID0117 | C115: 85000 | D115: Controller | E115: UAE | F115: 4 to 6 hours a day
B116: ID0118 | C116: 56160 | D116: Analyst | E116: USA | F116: 4 to 6 hours a day
B117: ID0119 | C117: 24000 | D117: Manager | E117: Colombia | F117: All the 8 hours baby, all the 8!
B118: ID0120 | C118: 52000 | D118: Analyst | E118: USA | F118: Excel ?!? What Excel?
B119: ID0121 | C119: 59001.69138 | D119: Analyst | E119: Canada | F119: Excel ?!? What Excel?
B120: ID0122 | C120: 70000 | D120: Accountant | E120: USA | F120: All the 8 hours baby, all the 8!
B121: ID0123 | C121: 50000 | D121: Specialist | E121: USA | F121: 4 to 6 hours a day
B122: ID0124 | C122: 40958.20838 | D122: Analyst | E122: India | F122: 1 or 2 hours a day
B123: ID0125 | C123: 80000 | D123: Analyst | E123: USA | F123: 4 to 6 hours a day
B124: ID0126 | C124: 128000 | D124: Manager | E124: USA | F124: All the 8 hours baby, all the 8!
B125: ID0127 | C125: 44000 | D125: Manager | E125: USA | F125: 1 or 2 hours a day
B126: ID0128 | C126: 65000 | D126: Accountant | E126: USA | F126: All the 8 hours baby, all the 8!
B127: ID0129 | C127: 36000 | D127: Accountant | E127: Turkey | F127: 4 to 6 hours a day
B128: ID0130 | C128: 12000 | D128: Consultant | E128: Pakistan | F128: 1 or 2 hours a day
B129: ID0131 | C129: 44383.60396 | D129: Analyst | E129: UK | F129: All the 8 hours baby, all the 8!
B130: ID0132 | C130: 45000 | D130: Analyst | E130: USA | F130: 4 to 6 hours a day | H130: =IF(ISBLANK(G130),NA(),VLOOKUP(G130,experienceCode,2,1)) -> 
B131: ID0133 | C131: 54000 | D131: Analyst | E131: USA | F131: 2 to 3 hours per day
B132: ID0134 | C132: 110332.479 | D132: Manager | E132: UK | F132: 2 to 3 hours per day
B133: ID0135 | C133: 71000 | D133: Analyst | E133: USA | F133: 4 to 6 hours a day
B134: ID0136 | C134: 14246.33335 | D134: Manager | E134: India | F134: 2 to 3 hours per day
B135: ID0137 | C135: 68835.30661 | D135: Manager | E135: Canada | F135: 4 to 6 hours a day
B136: ID0138 | C136: 49168.07615 | D136: Manager | E136: Canada | F136: 4 to 6 hours a day
B137: ID0139 | C137: 40000 | D137: Analyst | E137: USA | F137: 4 to 6 hours a day
B138: ID0140 | C138: 60968.41443 | D138: Analyst | E138: Canada | F138: 2 to 3 hours per day
B139: ID0141 | C139: 5983.460007 | D139: Reporting | E139: India | F139: 4 to 6 hours a day
B140: ID0142 | C140: 53000 | D140: Analyst | E140: USA | F140: 4 to 6 hours a day
B141: ID0143 | C141: 104000 | D141: CXO or Top Mgmt. | E141: USA | F141: 2 to 3 hours per day
B142: ID0144 | C142: 57000 | D142: Engineer | E142: USA | F142: 4 to 6 hours a day
B143: ID0145 | C143: 45000 | D143: Analyst | E143: USA | F143: 2 to 3 hours per day
B144: ID0146 | C144: 92000 | D144: Analyst | E144: USA | F144: 4 to 6 hours a day
B145: ID0147 | C145: 88000 | D145: Manager | E145: USA | F145: 4 to 6 hours a day
B146: ID0148 | C146: 80000 | D146: Analyst | E146: USA | F146: 2 to 3 hours per day
B147: ID0149 | C147: 69000 | D147: Consultant | E147: USA | F147: 4 to 6 hours a day
B148: ID0150 | C148: 50000 | D148: Analyst | E148: Mexico | F148: All the 8 hours baby, all the 8!
B149: ID0151 | C149: 35000 | D149: Manager | E149: USA | F149: 2 to 3 hours per day
B150: ID0152 | C150: 96000 | D150: Analyst | E150: USA | F150: 4 to 6 hours a day
B151: ID0153 | C151: 65000 | D151: Accountant | E151: USA | F151: All the 8 hours baby, all the 8!
B152: ID0154 | C152: 37440 | D152: Analyst | E152: USA | F152: All the 8 hours baby, all the 8!
B153: ID0155 | C153: 15500 | D153: Accountant | E153: Mexico | F153: All the 8 hours baby, all the 8!
B154: ID0156 | C154: 90000 | D154: Analyst | E154: USA | F154: 2 to 3 hours per day
B155: ID0157 | C155: 66500 | D155: Analyst | E155: USA | F155: All the 8 hours baby, all the 8!
B156: ID0158 | C156: 100000 | D156: Accountant | E156: USA | F156: All the 8 hours baby, all the 8!
B157: ID0159 | C157: 50831.74927 | D157: Manager | E157: UK | F157: 4 to 6 hours a day
B158: ID0160 | C158: 7479.325009 | D158: Manager | E158: India | F158: 1 or 2 hours a day
B159: ID0161 | C159: 75000 | D159: Analyst | E159: USA | F159: 1 or 2 hours a day
B160: ID0162 | C160: 58000 | D160: Manager | E160: Canada | F160: 1 or 2 hours a day
B161: ID0163 | C161: 55000 | D161: Manager | E161: USA | F161: 2 to 3 hours per day
B162: ID0164 | C162: 60000 | D162: Analyst | E162: USA | F162: 4 to 6 hours a day
B163: ID0165 | C163: 23150.29169 | D163: Manager | E163: India | F163: 4 to 6 hours a day
B164: ID0166 | C164: 105219.683 | D164: Manager | E164: Canada | F164: 2 to 3 hours per day
B165: ID0167 | C165: 145000 | D165: Controller | E165: Switzerland | F165: All the 8 hours baby, all the 8!
B166: ID0168 | C166: 22880 | D166: Accountant | E166: USA | F166: 4 to 6 hours a day
B167: ID0169 | C167: 80000 | D167: Consultant | E167: USA | F167: 4 to 6 hours a day
B168: ID0170 | C168: 8903.958344 | D168: Analyst | E168: India | F168: 2 to 3 hours per day
B169: ID0171 | C169: 88502.53707 | D169: Analyst | E169: Canada | F169: 4 to 6 hours a day
B170: ID0172 | C170: 3205.425004 | D170: Analyst | E170: India | F170: 4 to 6 hours a day
B171: ID0173 | C171: 46584 | D171: Analyst | E171: USA | F171: 4 to 6 hours a day
B172: ID0174 | C172: 67000 | D172: Analyst | E172: USA | F172: 4 to 6 hours a day
B173: ID0175 | C173: 19588.70836 | D173: Manager | E173: India | F173: 4 to 6 hours a day
B174: ID0176 | C174: 92000 | D174: Engineer | E174: USA | F174: 4 to 6 hours a day
B175: ID0177 | C175: 75000 | D175: Specialist | E175: USA | F175: All the 8 hours baby, all the 8!
B176: ID0178 | C176: 3205.425004 | D176: Analyst | E176: India | F176: 4 to 6 hours a day
B177: ID0179 | C177: 29159.29803 | D177: Manager | E177: UK | F177: All the 8 hours baby, all the 8!
B178: ID0180 | C178: 40000 | D178: Analyst | E178: USA | F178: All the 8 hours baby, all the 8!
B179: ID0181 | C179: 111680 | D179: Analyst | E179: USA | F179: 2 to 3 hours per day
B180: ID0182 | C180: 41406 | D180: Analyst | E180: Canada | F180: 1 or 2 hours a day
B181: ID0183 | C181: 70000 | D181: Manager | E181: USA | F181: 4 to 6 hours a day
B182: ID0184 | C182: 40700 | D182: Analyst | E182: USA | F182: 1 or 2 hours a day
B183: ID0185 | C183: 40000 | D183: Analyst | E183: USA | F183: 4 to 6 hours a day
B184: ID0186 | C184: 60000 | D184: Accountant | E184: USA | F184: 4 to 6 hours a day
B185: ID0187 | C185: 90469.26012 | D185: Consultant | E185: Canada | F185: All the 8 hours baby, all the 8!
B186: ID0188 | C186: 13636 | D186: Manager | E186: India | F186: All the 8 hours baby, all the 8!
B187: ID0189 | C187: 80000 | D187: Manager | E187: USA | F187: 2 to 3 hours per day
B188: ID0190 | C188: 59001.69138 | D188: Analyst | E188: Canada | F188: 2 to 3 hours per day
B189: ID0192 | C189: 28000 | D189: Analyst | E189: USA | F189: 4 to 6 hours a day
B190: ID0193 | C190: 60000 | D190: Analyst | E190: USA | F190: 4 to 6 hours a day
B191: ID0194 | C191: 96000 | D191: Specialist | E191: USA | F191: 2 to 3 hours per day
B192: ID0195 | C192: 67000 | D192: Analyst | E192: USA | F192: 4 to 6 hours a day
B193: ID0196 | C193: 70000 | D193: Analyst | E193: USA | F193: 4 to 6 hours a day
B194: ID0197 | C194: 4149.244588 | D194: Manager | E194: India | F194: All the 8 hours baby, all the 8! | H194: =IF(ISBLANK(G194),NA(),VLOOKUP(G194,experienceCode,2,1)) -> 
B195: ID0198 | C195: 99000 | D195: Controller | E195: USA | F195: 4 to 6 hours a day
B196: ID0200 | C196: 90000 | D196: Manager | E196: USA | F196: 2 to 3 hours per day
B197: ID0201 | C197: 4897.177089 | D197: Analyst | E197: India | F197: 2 to 3 hours per day
B198: ID0202 | C198: 3419.120004 | D198: Analyst | E198: India | F198: All the 8 hours baby, all the 8!
B199: ID0203 | C199: 51000 | D199: Manager | E199: USA | F199: 4 to 6 hours a day
B200: ID0204 | C200: 100000 | D200: Manager | E200: USA | F200: All the 8 hours baby, all the 8!
... 1684 more rows

Sheet calcs
M1: N | N1: Average salary | O1: Minimal salary | P1: Maximum salary | Q1: Analyst | R1: Manager | S1: Accountant | T1: Consultant | U1: Reporting | V1: CXO or Top Mgmt. | W1: Engineer | X1: Controller | Y1: Specialist | Z1: Other | AA1: 1 or 2 hours a day | AB1: 2 to 3 hours per day | AC1: 4 to 6 hours a day | AD1: All the 8 hours baby, all the 8! | AE1: less than 2 years | AF1: 2 - 5 years | AG1: 5 - 10 years | AH1: more than 10 years
A2: Annual salary | B2: 0 | E2: Results view | F2: 1 | K2: 1 | L2: Australia | M2: =COUNTIF(cleanCountry,L2) -> 81 | N2: =AVERAGEIF(cleanCountry,L2,salary) -> 92857.62985 | O2: =MIN(IF((cleanCountry=L2)*(salary),(salary))) -> 20000 | P2: =MAX(IF((cleanCountry=L2)*(salary),(salary))) -> 203981.9313 | Q2: =AVERAGEIFS(salary,cleanCountry,$L2,jobs,Q$1) -> 86525.3942 | R2: 95631.0297 | S2: 92811.77873 | T2: 103302.2781 | U2: 85000 | V2: 95191.56793 | W2: 163695.4999 | X2: 82952.65205 | Y2: 94851.59805 | Z2: =AVERAGEIFS(salary,cleanCountry,$L2,jobs,"Misc.") ->  | AA2: =AVERAGEIFS(salary,cleanCountry,$L2,daily,AA$1) -> 95361.55287 | AB2: 95628.80553 | AC2: 92107.69655 | AD2: 86349.26027 | AE2: =AVERAGEIFS(salary,cleanCountry,$L2,experienceR,AE$1) -> 63821.02696 | AF2: 69107.32197 | AG2: 96019.64803 | AH2: 106949.6659
A3: Currency | B3: 0 | E3: Chosen option | F3: 1 | K3: 2 | L3: Canada | M3: 58 | N3: 89799.52684 | O3: =MIN(IF((cleanCountry=L3)*(salary),(salary))) -> 20000 | P3: =MAX(IF((cleanCountry=L3)*(salary),(salary))) -> 1229201.904 | Q3: 63558.64134 | R3: 70334.47567 | S3: 680486.1739 | T3: 100958.4497 | V3: 98336.1523 | W3: 68835.30661 | X3: 89485.8986 | Y3: 51356.05554 | AA3: 51689.57658 | AB3: 79149.52844 | AC3: 120274.7697 | AD3: 62644.22636 | AE3: 47201.35311 | AF3: 47420.70828 | AG3: 61830.55707 | AH3: 98272.73204
A4: Country | B4: 0 | E4: Currency | F4: 60 | H4: =INDEX(ShortCur,Cur,1) -> USD | K4: 3 | L4: India | M4: 565 | N4: 13529.43089 | O4: =MIN(IF((cleanCountry=L4)*(salary),(salary))) -> 2136.950002 | P4: =MAX(IF((cleanCountry=L4)*(salary),(salary))) -> 186983.1252 | Q4: 11264.71626 | R4: 15642.54648 | S4: 10766.88189 | T4: 13928.39597 | U4: 10314.75139 | V4: 28659.37181 | W4: 12397.82557 | X4: 10468.17715 | Y4: 25575.07224 | Z4: 17551.33488 | AA4: 16770.9466 | AB4: 14167.28875 | AC4: 12473.72813 | AD4: 13088.54867 | AE4: 11392.99774 | AF4: 9984.80688 | AG4: 13741.65076 | AH4: 18437.11028
A5: Daily hours with excel | B5: 0 | C5: =VLOOKUP(B5,G11:H15,2,0) ->  | K5: 4 | L5: Netherlands | M5: 23 | N5: 73006.4312 | O5: =MIN(IF((cleanCountry=L5)*(salary),(salary))) -> 36206.38401 | P5: =MAX(IF((cleanCountry=L5)*(salary),(salary))) -> 254079.8878 | Q5: 62090.77258 | R5: 76859.16606 | S5: 62564.63157 | T5: 38111.98317 | U5: 254079.8878 | W5: 64790.37139 | X5: 71142.36858 | AA5: 48116.37875 | AB5: 63519.97195 | AC5: 64559.38967 | AD5: 117193.8401 | AF5: 62567.17237 | AG5: 58650.10743 | AH5: 72765.65676
A6: Job type | B6: 0 | C6: =VLOOKUP(B6,G20:H29,2,0) ->  | K6: 5 | L6: Pakistan | M6: 29 | N6: 11873.55259 | O6: =MIN(IF((cleanCountry=L6)*(salary),(salary))) -> 1783.166904 | P6: =MAX(IF((cleanCountry=L6)*(salary),(salary))) -> 48000 | Q6: 14887 | R6: 10382.34181 | S6: 4633.353712 | T6: 12899.15767 | U6: 1910.535969 | X6: 48000 | AA6: 8457.492503 | AB6: 12849.56355 | AC6: 11407.52855 | AD6: 12763.59456 | AE6: 12000 | AF6: 3523.155647 | AG6: 15082.17295 | AH6: 12455.02782
A7: Years of experience | B7: x | C7: =VLOOKUP(B7,G16:H19,2,1) ->  | K7: 6 | L7: South Africa | M7: 19 | N7: 49555.62499 | O7: =MIN(IF((cleanCountry=L7)*(salary),(salary))) -> 9509.898829 | P7: =MAX(IF((cleanCountry=L7)*(salary),(salary))) -> 131675.5223 | Q7: 44070.89405 | R7: 64096.11387 | S7: 36957.66144 | T7: 82000 | U7: 28500 | V7: 69815.30679 | X7: 9509.898829 | Y7: 38666 | AB7: 80468.37471 | AC7: 46842.00343 | AD7: 44880.26182 | AF7: 21049.52726 | AG7: 39000 | AH7: 56514.85737
K8: 7 | L8: UAE | M8: 19 | N8: 43014.90019 | O8: =MIN(IF((cleanCountry=L8)*(salary),(salary))) -> 12000 | P8: =MAX(IF((cleanCountry=L8)*(salary),(salary))) -> 100000 | Q8: 31677.69953 | R8: 50759.03819 | S8: 27000 | W8: 36000 | X8: 70250 | AA8: 36000 | AB8: 47442.05092 | AC8: 43830.11402 | AD8: 37964 | AF8: 27000 | AG8: 41760 | AH8: 38425.30052
K9: 8 | L9: UK | M9: 154 | N9: 67240.73011 | O9: =MIN(IF((cleanCountry=L9)*(salary),(salary))) -> 15761.78272 | P9: =MAX(IF((cleanCountry=L9)*(salary),(salary))) -> 299473.8717 | Q9: 57469.44941 | R9: 66390.12811 | S9: 55820.30474 | T9: 83902.61294 | U9: 31939.07519 | V9: 114272.9247 | W9: 81372.72518 | X9: 109281.6935 | Y9: 93624.98936 | AA9: 69253.33283 | AB9: 74438.80173 | AC9: 66551.70602 | AD9: 57261.83307 | AE9: 43195.69094 | AF9: 48508.61129 | AG9: 59853.87975 | AH9: 72256.44426
K10: 9 | L10: USA | M10: 617 | N10: 72738.12966 | O10: =MIN(IF((cleanCountry=L10)*(salary),(salary))) -> 10000 | P10: =MAX(IF((cleanCountry=L10)*(salary),(salary))) -> 400000 | Q10: 62583.73737 | R10: 77581.71034 | S10: 64737.19048 | T10: 98388.88889 | U10: 58200 | V10: 125615.3846 | W10: 72056.15385 | X10: 87813.23529 | Y10: 69800 | Z10: 83820.33333 | AA10: 80399.09302 | AB10: 76343.6129 | AC10: 69667.65603 | AD10: 73087.50746 | AE10: 50255.5 | AF10: 56053.17857 | AG10: 69595.89873 | AH10: 84244.25862
A11: Value of 1 American Dollar | B11: rate | C11: short | E11: Countries Alphabetized | G11: 1 | H11: I don't work with excel | M11: N | N11: Average salary | O11: Minimal salary | P11: Maximum salary | Q11: Australia | R11: Canada | S11: India | T11: Netherlands | U11: Pakistan | V11: South Africa | W11: UAE | X11: UK | Y11: USA | AA11: 1 - 2 hours a day | AB11: 2 - 3 hours a day | AC11: 4 - 6 hours a day | AD11: 8 hours a day | AE11: less than 2 years | AF11: 2 - 5 years | AG11: 5 - 10 years | AH11: more than 10 years
A12: AED - UAE Dirham | B12: 3.67351 | C12: AED | E12: Albania | G12: 2 | H12: 1 - 2 hours a day | K12: 1 | L12: Analyst | M12: =COUNTIF(jobs,L12) -> 743 | N12: =AVERAGEIF(jobs,L12,salary) -> 46295.76942 | O12: =MIN(IF((jobs=L12)*(salary),(salary))) -> 2136.950002 | P12: =MAX(IF((jobs=L12)*(salary),(salary))) -> 245840.3808 | Q12: =AVERAGEIFS(salary,jobs,$L12,cleanCountry,Q$11) -> 86525.3942 | R12: 63558.64134 | S12: 11264.71626 | T12: 62090.77258 | U12: 14887 | V12: 44070.89405 | W12: 31677.69953 | X12: 57469.44941 | Y12: 62583.73737 | AA12: =AVERAGEIFS(salary,jobs,$L12,daily,AA$1) -> 43819.27661 | AB12: 48572.5118 | AC12: 47705.91095 | AD12: 42953.14149 | AE12: =AVERAGEIFS(salary,jobs,$L12,experienceR,AE$1) -> 29985.14445 | AF12: 32113.16799 | AG12: 44991.66302 | AH12: 57754.2704
A13: ARS - Argentine Peso | B13: 4.49273 | C13: ARS | E13: Arabian Gulf | G13: 3 | H13: 2 - 3 hours a day | K13: 2 | L13: Manager | M13: 558 | N13: 46488.24071 | O13: =MIN(IF((jobs=L13)*(salary),(salary))) -> 1805.773962 | P13: =MAX(IF((jobs=L13)*(salary),(salary))) -> 400000 | Q13: 95631.0297 | R13: 70334.47567 | S13: 15642.54648 | T13: 76859.16606 | U13: 10382.34181 | V13: 64096.11387 | W13: 50759.03819 | X13: 66390.12811 | Y13: 77581.71034 | AA13: 57523.37251 | AB13: 48023.28191 | AC13: 47649.8932 | AD13: 35434.79337 | AE13: 18816.75527 | AF13: 29779.59078 | AG13: 30209.49601 | AH13: 57897.64556
A14: AUD - Australian Dollar | B14: 0.980479 | C14: AUD | E14: Argentina | G14: 4 | H14: 4 - 6 hours a day | K14: 3 | L14: Accountant | M14: 135 | N14: 54196.44058 | O14: =MIN(IF((jobs=L14)*(salary),(salary))) -> 1783.166904 | P14: =MAX(IF((jobs=L14)*(salary),(salary))) -> 1229201.904 | Q14: 92811.77873 | R14: 680486.1739 | S14: 10766.88189 | T14: 62564.63157 | U14: 4633.353712 | V14: 36957.66144 | W14: 27000 | X14: 55820.30474 | Y14: 64737.19048 | AA14: 21800.49327 | AB14: 37590.17338 | AC14: 69577.60892 | AD14: 49121.80239 | AE14: 51461.82441 | AF14: 20983.87428 | AG14: 38024.81385 | AH14: 52597.3954
A15: BDT - Bangladesh Takha | B15: 81.8274 | C15: BDT | E15: Armenia | G15: 5 | H15: 8 hours a day | K15: 4 | L15: Consultant | M15: 90 | N15: 62950.73322 | O15: =MIN(IF((jobs=L15)*(salary),(salary))) -> 2564.340003 | P15: =MAX(IF((jobs=L15)*(salary),(salary))) -> 250000 | Q15: 103302.2781 | R15: 100958.4497 | S15: 13928.39597 | T15: 38111.98317 | U15: 12899.15767 | V15: 82000 | X15: 83902.61294 | Y15: 98388.88889 | AA15: 45623.74361 | AB15: 64408.61623 | AC15: 62042.01453 | AD15: 70732.90609 | AE15: 23406.75739 | AF15: 41876.07701 | AG15: 71299.71121 | AH15: 69721.07054
A16: BGN - Bulgarian Lev | B16: 1.53952 | C16: BGN | E16: Aruba | G16: 0 | H16: less than 2 years | K16: 5 | L16: Reporting | M16: 83 | N16: 19574.15853 | O16: =MIN(IF((jobs=L16)*(salary),(salary))) -> 1910.535969 | P16: =MAX(IF((jobs=L16)*(salary),(salary))) -> 254079.8878 | Q16: 85000 | S16: 10314.75139 | T16: 254079.8878 | U16: 1910.535969 | V16: 28500 | X16: 31939.07519 | Y16: 58200 | AA16: 13071.86563 | AB16: 29495.90028 | AC16: 17890.78453 | AD16: 18372.10962 | AE16: 8467.986115 | AF16: 8713.934976 | AG16: 19206.12695 | AH16: 48709.88141
A17: BND - Brunei dollar | B17: 1.2687 | C17: BND | E17: Asia | G17: 2 | H17: 2 - 5 years | K17: 6 | L17: CXO or Top Mgmt. | M17: 75 | N17: 97265.87562 | O17: =MIN(IF((jobs=L17)*(salary),(salary))) -> 2671.187503 | P17: =MAX(IF((jobs=L17)*(salary),(salary))) -> 300000 | Q17: 95191.56793 | R17: 98336.1523 | S17: 28659.37181 | V17: 69815.30679 | X17: 114272.9247 | Y17: 125615.3846 | AA17: 79353.15065 | AB17: 120604.4868 | AC17: 92455.11059 | AD17: 80867.90146 | AE17: 11677.96876 | AF17: 62466.21586 | AG17: 61973.7833 | AH17: 110546.0187
A18: BRL - Brazilian Real | B18: 2.02314 | C18: BRL | E18: Australia | G18: 5 | H18: 5 - 10 years | K18: 7 | L18: Engineer | M18: 74 | N18: 51715.15142 | O18: =MIN(IF((jobs=L18)*(salary),(salary))) -> 2671.187503 | P18: =MAX(IF((jobs=L18)*(salary),(salary))) -> 231119.7486 | Q18: 163695.4999 | R18: 68835.30661 | S18: 12397.82557 | T18: 64790.37139 | W18: 36000 | X18: 81372.72518 | Y18: 72056.15385 | AA18: 35352.12819 | AB18: 66672.18129 | AC18: 48909.2063 | AD18: 40859.41667 | AE18: 31057.00021 | AF18: 20289.6477 | AG18: 34472.22158 | AH18: 89451.22747
A19: BWP - Botswana Pula | B19: 7.65697 | C19: BWP | E19: Austria | G19: 10 | H19: more than 10 years | K19: 8 | L19: Controller | M19: 67 | N19: 65103.92903 | O19: =MIN(IF((jobs=L19)*(salary),(salary))) -> 2564.340003 | P19: =MAX(IF((jobs=L19)*(salary),(salary))) -> 228671.899 | Q19: 82952.65205 | R19: 89485.8986 | S19: 10468.17715 | T19: 71142.36858 | U19: 48000 | V19: 9509.898829 | W19: 70250 | X19: 109281.6935 | Y19: 87813.23529 | AA19: 37497.74141 | AB19: 77495.72881 | AC19: 63312.75711 | AD19: 60376.61241 | AE19: 46325 | AF19: 14547.07673 | AG19: 46502.91393 | AH19: 82873.85532
A20: CAD - Canadian Dollar | B20: 1.01692 | C20: CAD | E20: Azerbaijan | G20: 1 | H20: Analyst | K20: 9 | L20: Specialist | M20: 51 | N20: 59812.96927 | O20: =MIN(IF((jobs=L20)*(salary),(salary))) -> 4019 | P20: =MAX(IF((jobs=L20)*(salary),(salary))) -> 400000 | Q20: 94851.59805 | R20: 51356.05554 | S20: 25575.07224 | V20: 38666 | X20: 93624.98936 | Y20: 69800 | AA20: 50194.80732 | AB20: 52440.78414 | AC20: 49273.75021 | AD20: 90591.37827 | AE20: 69649.61557 | AF20: 42009.5 | AG20: 42115.70465 | AH20: 56373.5366
A21: CHF - Swiss Franc | B21: 0.945293 | C21: CHF | E21: Baltic | G21: 2 | H21: Manager | K21: 10 | L21: Misc. | M21: 7 | N21: 45952.33422 | O21: =MIN(IF((jobs=L21)*(salary),(salary))) -> 2493.108336 | P21: =MAX(IF((jobs=L21)*(salary),(salary))) -> 90000 | S21: 17551.33488 | Y21: 83820.33333 | AA21: 82230.5 | AB21: 41712.23119 | AC21: 31497.70278 | AD21: 21000 | AF21: 46000 | AG21: 32651.36945 | AH21: 41712.23119
A22: CLP - Chilean Peso | B22: 497.268 | C22: CLP | E22: Bangladesh | G22: 3 | H22: Accountant
A23: CNY - Chinese Yuan | B23: 6.36091 | C23: CNY | E23: Belgium | G23: 4 | H23: Consultant
A24: COP - Colombian Peso | B24: 1769.79 | C24: COP | E24: Bermuda | G24: 5 | H24: Reporting
A25: CRC - Costarican colon | B25: 498.05 | C25: CRC | E25: Bhutan | G25: 6 | H25: CXO or Top Mgmt. | M25: Average pay | N25: Help1 | O25: Help2 | S25: Average pay | T25: Help1 | U25: Help2
A26: DKK - Danish Krone | B26: 5.85123 | C26: DKK | E26: Bolivia | G26: 7 | H26: Engineer | M26: =MAX(M27:M36,B2) -> 163695.4999 | N26: =MAX(M27:M36,B2) -> 163695.4999 | O26: =IF(CHOOSE(view,K26=$B$6,L26=$B$4),N24*0.025,0) -> 0 | Q26: 1 | R26: 1 or 2 hours a day | S26: =IFERROR(INDEX(IF(view=1,$AA$2:$AD$10,$AA$12:$AD$21),ChoOpt,Q26),0)*INDEX(RateCur,Cur,1) -> 95361.55287 | T26: =IF(Q26=$B$5,IF($B$2-U26>0,$B$2-U26,0),0)*INDEX(RateCur,Cur,1) -> 0 | U26: =IF(Q26=$B$5,$T$30*0.025,0) -> 0
A27: DOP - Dominican Peso | B27: 38.95 | C27: DOP | E27: Brasil | G27: 8 | H27: Controller | K27: 1 | L27: =IF(view=1,INDEX($L$12:$L$21,K27,1),INDEX($L$2:$L$10,K27,1)) -> Analyst | M27: =IFERROR(INDEX(IF(view=1,$Q$2:$Z$10,$Q$12:$Y$21),ChoOpt,K27),0)*INDEX(RateCur,Cur,1) -> 86525.3942 | N27: =IF(CHOOSE(view,K27=$B$6,L27=$B$4),IF($B$2-O27>0,$B$2-O27,0),0)*INDEX(RateCur,Cur,1) -> 0 | O27: =IF(CHOOSE(view,K27=$B$6,L27=$B$4),$N$26*0.025,0) -> 0 | Q27: 2 | R27: 2 to 3 hours per day | S27: =IFERROR(INDEX(IF(view=1,$AA$2:$AD$10,$AA$12:$AD$21),ChoOpt,Q27),0)*INDEX(RateCur,Cur,1) -> 95628.80553 | T27: =IF(Q27=$B$5,IF($B$2-U27>0,$B$2-U27,0),0)*INDEX(RateCur,Cur,1) -> 0 | U27: =IF(Q27=$B$5,$T$30*0.025,0) -> 0
A28: EGP - Egyptian Pound | B28: 6.051 | C28: EGP | E28: Brazil | G28: 9 | H28: Specialist | K28: 2 | L28: Manager | M28: 95631.0297 | N28: 0 | O28: 0 | Q28: 3 | R28: 4 to 6 hours a day | S28: =IFERROR(INDEX(IF(view=1,$AA$2:$AD$10,$AA$12:$AD$21),ChoOpt,Q28),0)*INDEX(RateCur,Cur,1) -> 92107.69655 | T28: =IF(Q28=$B$5,IF($B$2-U28>0,$B$2-U28,0),0)*INDEX(RateCur,Cur,1) -> 0 | U28: 0
A29: ETB - Ethiopian Birr | B29: 17.68 | C29: ETB | E29: Bulgaria | G29: 10 | H29: Misc. | K29: 3 | L29: Accountant | M29: 92811.77873 | N29: 0 | O29: 0 | Q29: 4 | R29: All the 8 hours baby, all the 8! | S29: =IFERROR(INDEX(IF(view=1,$AA$2:$AD$10,$AA$12:$AD$21),ChoOpt,Q29),0)*INDEX(RateCur,Cur,1) -> 86349.26027 | T29: =IF(Q29=$B$5,IF($B$2-U29>0,$B$2-U29,0),0)*INDEX(RateCur,Cur,1) -> 0 | U29: 0
A30: EUR - Euro | B30: 0.787154 | C30: EUR | E30: Cambodia | K30: 4 | L30: Consultant | M30: 103302.2781 | N30: 0 | O30: 0 | S30: =MAX(S26:S29,B2) -> 95628.80553 | T30: =MAX(S26:S29,B2) -> 95628.80553 | U30: 0
A31: GBP - British Pound | B31: 0.634446 | C31: GBP | E31: Canada | K31: 5 | L31: Reporting | M31: 85000 | N31: 0 | O31: 0
A32: HKD - Hong Kong Dollar | B32: 7.75889 | C32: HKD | E32: Cee | K32: 6 | L32: CXO or Top Mgmt. | M32: 95191.56793 | N32: 0 | O32: 0
A33: HRK - Croatian Kuna | B33: 5.93671 | C33: HRK | E33: Central America | K33: 7 | L33: Engineer | M33: 163695.4999 | N33: 0 | O33: 0
A34: HUF - Hungarian Forint | B34: 225.874 | C34: HUF | E34: China | K34: 8 | L34: Controller | M34: 82952.65205 | N34: 0 | O34: 0
A35: IDR - Indonesian Rupiah | B35: 9443.81 | C35: IDR | E35: Colombia | K35: 9 | L35: Specialist | M35: 94851.59805 | N35: 0 | O35: 0 | S35: Average pay | T35: Help1 | U35: Help2
A36: ILS - Israeli New Shekel | B36: 3.86721 | C36: ILS | E36: Costa Rica | K36: 10 | L36: =IFERROR(IF(view=1,INDEX($L$12:$L$21,K36,1),INDEX($L$2:$L$10,K36,1)),"") -> Misc. | M36: 0 | N36: 0 | O36: 0 | Q36: 1 | R36: less than 2 years | S36: =IFERROR(INDEX(IF(view=1,$AE$2:$AH$10,$AE$12:$AH$21),ChoOpt,Q36),0)*INDEX(RateCur,Cur,1) -> 63821.02696 | T36: =IF(R36=$C$7,IF($B$2-U36>0,$B$2-U36,0),0)*INDEX(RateCur,Cur,1) ->  | U36: =IF(R36=$C$7,$T$40*0.025,0) -> 
A37: INR - Indian Rupee | B37: 56.1548 | C37: INR | E37: Croatia | Q37: 2 | R37: 2 - 5 years | S37: =IFERROR(INDEX(IF(view=1,$AE$2:$AH$10,$AE$12:$AH$21),ChoOpt,Q37),0)*INDEX(RateCur,Cur,1) -> 69107.32197 | T37: =IF(R37=$C$7,IF($B$2-U37>0,$B$2-U37,0),0)*INDEX(RateCur,Cur,1) ->  | U37: =IF(R37=$C$7,$T$40*0.025,0) -> 
A38: ISK - Iceland Krona | B38: 124.697 | C38: ISK | E38: Czech Republic | Q38: 3 | R38: 5 - 10 years | S38: =IFERROR(INDEX(IF(view=1,$AE$2:$AH$10,$AE$12:$AH$21),ChoOpt,Q38),0)*INDEX(RateCur,Cur,1) -> 96019.64803 | T38: =IF(R38=$C$7,IF($B$2-U38>0,$B$2-U38,0),0)*INDEX(RateCur,Cur,1) -> 
A39: JPY - Japanese Yen | B39: 78.9043 | C39: JPY | E39: Denmark | Q39: 4 | R39: more than 10 years | S39: =IFERROR(INDEX(IF(view=1,$AE$2:$AH$10,$AE$12:$AH$21),ChoOpt,Q39),0)*INDEX(RateCur,Cur,1) -> 106949.6659 | T39: =IF(R39=$C$7,IF($B$2-U39>0,$B$2-U39,0),0)*INDEX(RateCur,Cur,1) -> 
A40: KES - Kenyan Shilling | B40: 83.5 | C40: KES | E40: Dominican Republic | S40: =MAX(S36:S39,B2) -> 106949.6659 | T40: =MAX(S36:S39,B2) -> 106949.6659 | U40: 0
A41: KRW - South Korean Won | B41: 1151.09 | C41: KRW | E41: Dubai
A42: KWD - Kuwaiti Dinar | B42: 0.2794 | C42: KWD | E42: Egypt | K42: Respondents in sample | L42: =INDEX(CHOOSE(view,$M$2:$P$10,$M$12:$P$21),ChoOpt,1) -> 81
A43: KZT - Kazakhstani Tenge | B43: 148.88 | C43: KZT | E43: Estonia | K43: Average salary | L43: =INDEX(CHOOSE(view,$M$2:$P$10,$M$12:$P$21),ChoOpt,2)*INDEX(RateCur,Cur,1) -> 92857.62985 | M43: =ROUND(L43,0)&" "&$H$4 -> 92858 USD
A44: LKR - Sri Lanka Rupee | B44: 132.907 | C44: LKR | E44: Ethiopia | K44: Minimal salary | L44: =INDEX(CHOOSE(view,$M$2:$P$10,$M$12:$P$21),ChoOpt,3)*INDEX(RateCur,Cur,1) -> 20000 | M44: =ROUND(L44,0)&" "&$H$4 -> 20000 USD
A45: LTL - Lithuanian Litas | B45: 2.71788 | C45: LTL | E45: Europe | K45: Maximum salry | L45: =INDEX(CHOOSE(view,$M$2:$P$10,$M$12:$P$21),ChoOpt,4)*INDEX(RateCur,Cur,1) -> 203981.9313 | M45: =ROUND(L45,0)&" "&$H$4 -> 203982 USD
A46: LVL - Latvian Lat | B46: 0.548489 | C46: LVL | E46: Finland
A47: LYD - Libyan Dinar | B47: 1.9324 | C47: LYD | E47: France | K47: =IF(view=1,"Working in ","Working as ")&INDEX(CHOOSE(view,L2:L10,L12:L21),ChoOpt,1) -> Working in Australia
A48: MAD - Moroccan Dirham | B48: 8.73 | C48: MAD | E48: Germany
A49: MNT - Mongolian Tughrik | B49: 1322 | C49: MNT | E49: Ghana
A50: MUR - Mauritius Rupee | B50: 30.7159 | C50: MUR | E50: Greece
A51: MXN - Mexican Peso | B51: 13.6899 | C51: MXN | E51: Guyana
A52: MYR - Malaysian Ringgit | B52: 3.15656 | C52: MYR | E52: Hong Kong
A53: NAIRA - Nigerian Naira | B53: 162.25 | C53: NAIRA | E53: Hungary
A54: NOK - Norwegian Kroner | B54: 5.90838 | C54: NOK | E54: Iceland
A55: NPR - Nepalese Rupee | B55: 89.65 | C55: NPR | E55: India
A56: NZD - New Zealand Dollar | B56: 1.25378 | C56: NZD | E56: Indonesia
A57: OMR - Omani Rial | B57: 0.3845 | C57: OMR | E57: Iran
A58: PHP - Philippine Peso | B58: 42.1851 | C58: PHP | E58: Ireland
A59: PKR - Pakistan Rupee | B59: 94.2144 | C59: PKR | E59: Israel
A60: PLN - Polish Zloty | B60: 3.32984 | C60: PLN | E60: Italy
A61: QAR - Qatari Rial | B61: 3.64 | C61: QAR | E61: Japan
A62: RON - Romanian Leu | B62: 3.51354 | C62: RON | E62: Kenya
A63: RUB - Russian Ruble | B63: 32.5458 | C63: RUB | E63: Kuwait
A64: SAR - Saudi Riyal | B64: 3.75 | C64: SAR | E64: Kuwait
A65: SEK - Swedish Krona | B65: 6.96111 | C65: SEK | E65: Latin America
A66: SGD - Singapore Dollar | B66: 1.26771 | C66: SGD | E66: Lesotho
A67: THB - Thai Baht | B67: 31.5003 | C67: THB | E67: Libya
A68: TRY - Turkish Lira | B68: 1.79447 | C68: TRY | E68: Lithuania
A69: TTD - Trinidad/Tobago Dollar | B69: 6.39122 | C69: TTD | E69: Malaysia
A70: TWD - Taiwan Dollar | B70: 29.8594 | C70: TWD | E70: Mauritius
A71: USD - American Dollar | B71: 1 | C71: USD | E71: Mexico
A72: VEF - Venezuelan Bolivar | B72: 4.29402 | C72: VEF | E72: Mongolia
A73: ZAR - South African Rand | B73: 8.20198 | C73: ZAR | E73: Montenegro
E74: Morocco
A75: Source: Xrates on 6/21/2012 | B75: and xe.com | E75: Mozambique
E76: Myanmar
E77: Mys
E78: Netherlands
E79: New Zealand
E80: Nigeria
E81: Norway
E82: Oman
E83: Pakistan
E84: Panama
E85: Paraguay
E86: Peru
E87: Philippines
E88: Poland
E89: Portugal
E90: Qatar
E91: Republic Of Georgia
E92: Republica Dominicana
E93: Romania
E94: Russia
E95: Saudi Arabia
E96: Self-Employed
E97: Singapore
E98: Slovakia
E99: Slovenia
E100: Somalia
E101: South Africa
E102: Spain
E103: Sri Lanka
E104: Sweden
E105: Switzerland
E106: Thailand
E107: Tunisia
E108: Turkey
E109: Uae
E110: Uganda
E111: Uk
E112: Ukraine
E113: Uruguay
E114: Usa
E115: Viet Nam
E116: Vietnam
E117: Zambia
E118: Zimbabwe
